bitfinex/quotes_ETHUSD_20250813
["timestamp","ask_amount","ask_price","bid_price","bid_amount"]
[1755124119497,9.15103847,4732.1,4731.9,3.312]
[1755124122369,0.61,4732.3,4731.9,3.312]
[1755124122567,0.61,4732.3,4731.9,3.7511]
[1755124123507,2.30086385,4732.3,4731.9,3.7511]
[1755124124069,2.30086385,4732.3,4731.9,3.312]
[1755124125483,2.30086385,4732.3,4731.9,3.7511]
[1755124126280,2.30086385,4732.3,4731.9,3.312]
[1755124126482,9.15103847,4732.1,4731.9,3.312]
[1755124126808,1.85995023,4732.0,4731.9,3.312]
[1755124129195,2.46995023,4732.0,4731.9,3.312]
[1755124129388,0.61,4732.0,4731.9,3.312]
[1755124130605,0.61,4732.0,4731.9,3.7511]
[1755124132491,0.612,4732.0,4731.9,3.7511]
[1755124133010,0.612,4732.0,4731.9,4.327]
[1755124133210,0.612,4732.0,4731.9,3.7511]
[1755124133809,0.612,4732.0,4731.9,4.327]
[1755124138899,0.9078,4733.2,4731.9,4.327]
[1755124138900,0.022,4733.4,4732.0,0.70114073]
[1755124139099,0.022,4733.4,4732.1,4.3115]
[1755124139419,0.022,4733.4,4732.2,0.29528]
[1755124139598,0.022,4733.4,4732.3,3.307]
[1755124139802,0.022,4733.4,4732.4,1.0035]
[1755124140195,0.022,4733.4,4732.5,1.0035]
[1755124140413,0.022,4733.4,4732.6,3.307]
[1755124140910,0.022,4733.4,4732.7,1.0035]
[1755124141403,0.022,4733.4,4732.8,1.0035]
[1755124141603,0.022,4733.4,4732.9,3.307]
[1755124141800,0.022,4733.4,4732.9,1.0035]
[1755124142014,0.022,4733.4,4733.0,4.3105]
[1755124142188,0.022,4733.4,4733.1,1.0035]
[1755124142709,0.022,4733.4,4733.2,1.0035]
[1755124143014,0.022,4733.4,4733.3,3.307]
[1755124143389,0.022,4733.4,4733.3,4.3095]
[1755124147896,0.022,4733.4,4733.3,4.4151]
[1755124148703,0.022,4733.4,4733.3,4.4141]
[1755124149333,0.022,4733.4,4733.3,1.1091]
[1755124149512,0.022,4733.4,4733.3,4.4141]
[1755124149913,0.022,4733.4,4733.3,1.1091]
[1755124150109,0.022,4733.4,4733.3,4.4141]
[1755124150430,0.022,4733.4,4733.3,1.1091]
[1755124150625,0.022,4733.4,4733.3,4.4131]
[1755124151719,0.022,4733.4,4733.3,0.5697]
[1755124151922,0.022,4733.4,4733.3,4.4131]
[1755124152239,0.022,4733.4,4733.3,3.4096]
[1755124152734,0.022,4733.4,4733.3,4.4131]
[1755124155038,0.022,4733.4,4733.3,1.1091]
[1755124155336,0.022,4733.4,4733.3,4.4121]
[1755124158241,0.002,4733.9,4733.3,4.4121]
[1755124158447,1e-08,4733.9,4733.4,0.48522646]
[1755124158666,1e-08,4734.4,4733.4,1.31985048]
[1755124158959,1e-08,4734.4,4734.3,0.1056]
[1755124159120,1e-08,4734.4,4734.3,8.4696]
[1755124159325,1e-08,4734.4,4734.3,9.4731]
[1755124160057,1e-08,4734.4,4734.3,9.1701]
[1755124160231,1e-08,4734.4,4734.3,12.4721]
[1755124160432,1e-08,4734.4,4734.3,9.4721]
[1755124160929,1e-08,4734.4,4734.3,5.1666]
[1755124161148,1e-08,4734.4,4734.3,8.4686]
[1755124161356,1e-08,4734.4,4734.3,9.4721]
[1755124161930,1e-08,4734.4,4734.3,8.9327]
[1755124162138,1e-08,4734.4,4734.3,8.4686]
[1755124162864,1e-08,4734.4,4734.3,8.9327]
[1755124163257,1e-08,4734.4,4734.3,8.4686]
[1755124165261,1e-08,4734.4,4734.3,8.9327]
[1755124165467,1e-08,4734.4,4734.3,8.4686]
[1755124165966,1e-08,4734.4,4734.3,8.4676]
[1755124167831,1e-08,4734.4,4734.3,5.1666]
[1755124168031,1e-08,4734.4,4734.3,8.4676]
[1755124169880,1e-08,4734.4,4734.3,5.1666]
[1755124170038,1e-08,4734.4,4734.3,8.4666]
[1755124171242,1e-08,4734.4,4734.3,5.1666]
[1755124171455,1e-08,4734.4,4734.3,8.4666]
[1755124171670,1e-08,4734.4,4734.3,5.1666]
[1755124171874,1e-08,4734.4,4734.3,8.4666]
[1755124172190,1e-08,4734.4,4734.3,8.939]
[1755124172338,1e-08,4734.4,4734.3,9.4764]
[1755124173182,1e-08,4734.4,4734.3,5.1666]
[1755124173342,1e-08,4734.4,4734.3,8.4656]
[1755124174057,1e-08,4734.4,4734.3,5.1666]
[1755124174257,1e-08,4734.4,4734.3,8.4656]
[1755124176592,1e-08,4734.4,4734.3,5.1666]
[1755124176746,1e-08,4734.4,4734.3,8.4656]
[1755124176747,0.38500001,4734.4,4734.3,8.4656]
[1755124176947,1.85365786,4734.4,4734.3,8.4656]
[1755124177186,1.85365786,4734.4,4734.3,8.36]
[1755124177656,0.90160001,4734.4,4734.3,8.36]
[1755124178296,1e-08,4734.4,4734.3,8.36]
[1755124179174,0.90160001,4734.4,4734.3,5.061]
[1755124179488,1e-08,4734.4,4734.3,8.36]
[1755124179649,0.90160001,4734.4,4734.3,8.36]
[1755124179848,0.90160001,4734.4,4734.3,8.359]
[1755124181177,1e-08,4734.4,4734.3,8.359]
[1755124181391,1e-08,4734.4,4734.3,5.061]
[1755124181595,1e-08,4734.4,4734.3,8.359]
[1755124183493,1e-08,4734.4,4734.3,5.061]
[1755124183713,0.90160001,4734.4,4734.3,5.061]
[1755124183877,1.91587786,4734.4,4734.3,8.359]
[1755124184368,0.90160001,4734.4,4734.3,8.359]
[1755124186804,0.90160001,4734.4,4733.4,5.061]
[1755124187111,3.0,4734.1,4733.5,3.298]
[1755124187292,0.1056,4734.0,4733.5,3.298]
[1755124187894,0.1056,4734.0,4733.5,3.7704]
[1755124188096,0.1056,4734.0,4733.6,0.4724]
[1755124188386,1e-08,4734.4,4733.7,4.3068]
[1755124188598,0.10560001,4734.4,4733.8,3.4026]
[1755124189207,1e-08,4734.4,4733.8,3.4026]
[1755124189408,1e-08,4734.4,4733.9,0.4724]
[1755124189599,1e-08,4734.4,4734.0,3.297]
[1755124189785,1e-08,4734.4,4734.0,4.3068]
[1755124189985,1e-08,4734.4,4734.3,0.1056]
[1755124190188,1e-08,4734.4,4734.3,3.4026]
[1755124190390,1e-08,4734.4,4734.3,4.4124]
[1755124197519,1e-08,4734.4,4734.3,3.873]
[1755124197714,1e-08,4734.4,4734.3,3.4006]
[1755124198719,1e-08,4734.4,4734.3,3.4016]
[1755124198908,1e-08,4734.4,4734.3,8.4626]
[1755124199315,1e-08,4734.4,4734.3,5.1676]
[1755124199506,1e-08,4734.4,4734.3,8.4626]
[1755124200904,1e-08,4734.4,4734.3,5.1676]
[1755124201216,1e-08,4734.4,4734.3,8.4626]
[1755124201418,1e-08,4734.4,4734.3,8.4616]
[1755124201623,0.91870001,4734.4,4734.3,8.4616]
[1755124201793,0.91870001,4734.4,4734.3,5.062]
[1755124202120,1.92412786,4734.4,4734.3,8.356]
[1755124202631,1.92412786,4734.4,4734.3,5.062]
[1755124202789,0.91870001,4734.4,4734.3,8.356]
[1755124203219,0.53370001,4734.4,4734.3,8.356]
[1755124203391,1e-08,4734.4,4734.3,8.356]
[1755124203595,0.91870001,4734.4,4734.3,8.356]
[1755124203801,1e-08,4734.4,4734.3,8.356]
[1755124204502,0.91870001,4734.4,4734.3,8.356]
[1755124205111,1e-08,4734.4,4734.3,8.356]
[1755124205603,0.91870001,4734.4,4734.3,5.062]
[1755124205818,0.91870001,4734.4,4734.3,8.356]
[1755124206603,0.91870001,4734.4,4734.3,5.062]
[1755124206840,1.32113001,4734.4,4734.3,8.356]
[1755124207518,1.32113001,4734.4,4734.3,5.062]
[1755124207844,1.32113001,4734.4,4734.3,8.355]
[1755124209599,1.32113001,4734.4,4734.3,5.062]
[1755124209808,1.34753251,4734.4,4734.3,5.062]
[1755124210005,0.42883251,4734.4,4734.3,8.355]
[1755124210308,0.91870001,4734.4,4734.3,5.062]
[1755124210521,0.91870001,4734.4,4734.3,8.355]
[1755124210921,0.91870001,4734.4,4734.3,3.294]
[1755124210922,0.94510251,4734.4,4734.3,3.294]
[1755124211237,0.94510251,4734.4,4733.8,0.001]
[1755124211437,0.94510251,4734.4,4733.3,0.001]
[1755124211438,3.0,4733.8,4733.3,0.001]
[1755124211654,2.12753365,4733.7,4733.4,3.293]
[1755124211809,3.0,4733.6,4733.4,3.293]
[1755124212145,1.05070752,4733.5,4733.4,3.293]
[1755124212843,1.05070752,4733.5,4733.3,0.001]
[1755124213012,0.13200752,4733.5,4733.4,3.293]
[1755124213333,2.23313477,4733.5,4733.4,3.293]
[1755124213550,3.0,4733.4,4733.3,0.001]
[1755124213751,0.9187,4733.4,4733.3,3.294]
[1755124214101,0.1056,4733.4,4733.3,3.294]
[1755124214314,0.72078336,4733.4,4733.3,3.294]
[1755124214724,0.1056,4733.4,4733.3,3.294]
[1755124215468,1.07349562,4733.4,4732.4,0.001]
[1755124215756,0.02640863,4733.3,4732.8,3.294]
[1755124216264,3.0,4732.9,4732.8,0.001]
[1755124216434,5.12753811,4732.9,4732.8,3.293]
[1755124216625,6.01982725,4732.9,4732.8,3.293]
[1755124217460,6.11707888,4732.9,4732.8,3.293]
[1755124219328,5.19837888,4732.9,4732.8,3.293]
[1755124220957,12.12112725,4732.9,4732.8,3.293]
[1755124221331,10.02,4732.9,4732.8,3.7445]
[1755124222333,10.02,4732.9,4732.8,4.2843]
[1755124223081,10.02,4732.9,4732.8,3.7445]
[1755124223785,7.02,4732.9,4732.8,4.2843]
[1755124224282,10.02,4732.9,4732.8,4.2843]
[1755124225386,10.1256,4732.9,4732.8,4.2843]
[1755124227461,10.1256,4732.9,4732.8,0.001]
[1755124227778,11.13816,4732.9,4732.8,3.292]
[1755124230107,11.13816,4732.9,4732.8,0.001]
[1755124230473,12.02056,4732.9,4732.8,0.001]
[1755124230801,12.02056,4732.9,4732.8,3.292]
[1755124231301,11.13816,4732.9,4732.8,3.292]
[1755124231602,11.13816,4732.9,4732.8,0.001]
[1755124231769,11.13816,4732.9,4732.8,3.292]
[1755124233001,11.13816,4732.9,4732.8,4.2318]
[1755124233296,10.1256,4732.9,4732.8,4.2318]
[1755124234065,10.1256,4732.9,4732.8,3.7319]
[1755124234267,10.1256,4732.9,4732.8,3.292]
[1755124234902,10.1256,4732.9,4732.8,3.7319]
[1755124237007,10.1256,4732.9,4732.8,4.2318]
[1755124237008,0.1056,4732.9,4732.8,4.2318]
[1755124237210,0.15617247,4733.4,4732.8,4.2318]
[1755124237211,0.15617247,4733.4,4732.8,4.3374]
[1755124237516,0.1056,4733.5,4732.9,0.4999]
[1755124237697,0.1056,4733.5,4732.9,0.9398]
[1755124238094,0.1056,4733.5,4733.0,0.9398]
[1755124238513,7.02,4735.3,4733.1,0.9609278]
[1755124238715,11.432,4735.4,4733.4,0.1056]
[1755124238716,0.1056,4734.8,4733.4,0.1056]
[1755124238885,0.1056,4734.8,4734.1,0.1056]
[1755124239226,0.1056,4734.8,4734.2,3.29]
[1755124239517,0.1056,4734.8,4734.2,0.9398]
[1755124239684,0.022,4735.4,4734.3,3.7299]
[1755124239685,0.04839692,4735.4,4734.3,3.7299]
[1755124239884,0.10560001,4734.4,4734.3,3.7299]
[1755124240111,0.10560001,4734.4,4734.3,4.2298]
[1755124242326,1e-08,4734.4,4734.3,4.2298]
[1755124253412,1e-08,4734.4,4734.3,4.25092244]
[1755124254614,1e-08,4734.4,4734.3,7.35652244]
[1755124254822,1e-08,4734.4,4734.3,7.3354]
[1755124255708,1e-08,4735.4,4734.4,3.0]
[1755124255940,1e-08,4735.4,4734.6,3.0]
[1755124256125,1e-08,4735.4,4735.3,0.1056]
[1755124256344,1e-08,4735.4,4735.3,3.41271798]
[1755124256557,1e-08,4735.4,4735.3,4.35251798]
[1755124256760,1e-08,4735.4,4735.3,4.3314]
[1755124260760,0.002,4735.9,4735.3,4.3314]
[1755124260939,0.002,4735.9,4735.4,0.98501754]
[1755124261134,0.002,4735.9,4735.5,3.284]
[1755124261346,0.002,4735.9,4735.6,0.02111664]
[1755124261540,0.002,4735.9,4735.7,3.284]
[1755124261746,0.002,4735.9,4735.8,0.1056]
[1755124261934,0.002,4735.9,4735.8,1.0695]
[1755124262357,0.002,4735.9,4735.8,6.1285]
[1755124263797,0.002,4735.9,4735.8,8.4476]
[1755124264352,0.002,4735.9,4735.8,8.8995]
[1755124266355,0.002,4735.9,4735.8,5.1646]
[1755124266559,0.002,4735.9,4735.8,8.4476]
[1755124267576,0.002,4735.9,4735.8,9.4115]
[1755124267920,1e-08,4736.4,4735.8,9.3059]
[1755124268091,1e-08,4736.4,4735.9,0.02111531]
[1755124268297,1e-08,4736.4,4736.3,0.1056]
[1755124268512,1e-08,4736.4,4736.3,3.3876]
[1755124268682,1e-08,4736.4,4736.3,4.3515]
[1755124269427,1e-08,4736.4,4736.3,4.0695]
[1755124269583,1e-08,4736.4,4736.3,7.3515]
[1755124271217,0.5074,4738.2,4736.4,3.0]
[1755124271514,0.5074,4739.0,4738.1,0.1056]
[1755124271815,0.099,4738.3,4738.2,8.34]
[1755124271985,0.6064,4738.3,4738.2,8.34]
[1755124272315,0.6064,4738.3,4738.2,5.058]
[1755124272523,0.6064,4738.3,4738.2,8.34]
[1755124272818,0.6064,4738.3,4738.2,5.058]
[1755124273022,0.6064,4738.3,4738.2,8.34]
[1755124273517,0.02,4738.4,4738.2,8.34]
[1755124273702,0.02,4738.4,4738.3,0.02110461]
[1755124273908,0.02,4738.4,4738.3,0.9639]
[1755124274104,0.02,4738.4,4738.3,0.98500461]
[1755124274318,0.02,4738.4,4738.3,0.9639]
[1755124274695,0.02,4738.4,4738.3,0.96544906]
[1755124274892,0.02,4738.4,4738.3,0.45344906]
[1755124275198,0.02,4738.4,4738.3,0.96544906]
[1755124277544,1e-08,4738.4,4738.3,0.98500461]
[1755124277708,1e-08,4738.4,4738.3,3.98500461]
[1755124277893,1e-08,4738.4,4738.3,4.09060461]
[1755124279346,1e-08,4738.4,4738.3,4.0695]
[1755124279514,1e-08,4738.4,4738.3,4.09060461]
[1755124279933,1e-08,4738.4,4738.3,4.0695]
[1755124280241,1e-08,4738.4,4738.3,3.1056]
[1755124280534,1e-08,4738.4,4738.3,6.3856]
[1755124280706,1e-08,4738.4,4738.3,7.3495]
[1755124280908,1e-08,4738.4,4738.3,4.0695]
[1755124281113,1e-08,4738.4,4738.3,3.38589294]
[1755124281333,1e-08,4738.4,4738.3,0.10689294]
[1755124281643,1e-08,4738.4,4738.3,3.3846]
[1755124281809,1e-08,4738.4,4738.3,3.3856795]
[1755124282515,1e-08,4738.4,4738.3,4.3485]
[1755124283349,1e-08,4738.4,4738.3,4.34957936]
[1755124283519,1e-08,4738.4,4738.3,4.3485]
[1755124283711,1e-08,4738.4,4738.3,7.34957917]
[1755124283910,0.002,4738.9,4738.3,7.34957917]
[1755124283911,1e-08,4738.9,4738.3,7.34957917]
[1755124284115,1e-08,4738.9,4738.8,0.1056]
[1755124284422,1e-08,4738.9,4738.8,6.3846]
[1755124284726,1e-08,4738.9,4738.8,7.34957917]
[1755124284917,1e-08,4739.4,4738.9,3.0]
[1755124285108,1e-08,4739.4,4739.1,3.0]
[1755124285313,1e-08,4739.4,4739.2,3.279]
[1755124285821,1e-08,4739.4,4739.3,0.9639]
[1755124286026,1e-08,4739.4,4739.3,3.3836]
[1755124286439,1e-08,4739.4,4739.3,4.3475]
[1755124287388,1e-08,4739.4,4739.3,4.3485789]
[1755124287831,1e-08,4739.4,4739.3,3.3846789]
[1755124288030,1e-08,4739.4,4739.3,3.3836]
[1755124288253,1e-08,4739.4,4739.3,3.278]
[1755124288459,1e-08,4739.4,4739.3,4.258279]
[1755124290661,1e-08,4739.4,4739.3,3.279079]
[1755124291940,0.89730001,4739.4,4739.3,3.279079]
[1755124292460,0.89730001,4739.4,4737.6,0.4726]
[1755124292638,0.89730001,4739.4,4738.3,3.277]
[1755124292836,0.8973,4739.3,4738.4,3.277]
[1755124293080,0.8973,4739.2,4737.2,0.4726]
[1755124293377,1e-08,4739.4,4737.2,0.4726]
[1755124293378,0.8973,4739.1,4738.3,3.277]
[1755124293538,1e-08,4739.4,4737.1,0.02]
[1755124293539,0.8973,4739.0,4737.1,0.02]
[1755124293737,0.5123,4738.9,4738.3,3.277]
[1755124294035,0.385,4738.8,4738.3,3.277]
[1755124294567,1e-08,4739.4,4737.1,0.02]
[1755124294568,0.8973,4738.7,4737.1,0.02]
[1755124294869,0.92367909,4738.6,4737.4,5.055]
[1755124295171,0.8973,4738.5,4737.4,5.055]
[1755124295340,0.8973,4738.4,4737.4,5.055]
[1755124295540,0.8973,4738.3,4737.4,5.055]
[1755124295978,0.8973,4738.2,4737.4,5.055]
[1755124296280,0.8973,4738.1,4737.4,5.055]
[1755124296743,3.0,4737.4,4736.1,0.02]
[1755124297070,3.0,4737.2,4736.2,0.558]
[1755124297364,0.02638745,4737.1,4736.2,0.558]
[1755124297874,0.8902,4737.0,4736.2,0.558]
[1755124298035,0.02638856,4736.9,4736.2,0.558]
[1755124298241,0.1056,4736.3,4736.2,0.558]
[1755124298641,0.9958,4736.3,4736.2,0.558]
[1755124301359,0.1056,4736.3,4736.2,0.558]
[1755124302759,0.4899,4736.7,4736.2,0.558]
[1755124302962,0.5955,4736.7,4736.2,0.558]
[1755124303475,0.1056,4736.7,4736.3,5.55171352]
[1755124303677,0.1056,4736.7,4736.4,0.9792]
[1755124303837,0.1056,4736.7,4736.3,5.058]
[1755124304037,0.8739,4737.4,4736.3,5.058]
[1755124304242,0.1056,4737.3,4736.6,0.1056]
[1755124305097,0.1056,4736.9,4736.3,5.1636]
[1755124306044,0.1056,4737.3,4736.6,0.1056]
[1755124306778,0.384,4738.0,4736.3,5.5306]
[1755124306964,0.1056,4737.5,4736.9,0.1056]
[1755124307770,7.02,4738.1,4737.0,0.0211104]
[1755124307962,0.1056,4737.7,4736.9,0.1056]
[1755124308271,7.02,4738.1,4736.9,0.1056]
[1755124308272,0.1056,4737.9,4737.3,0.1056]
[1755124308475,0.1056,4737.9,4737.4,3.279]
[1755124309980,0.1056,4737.9,4737.5,1.00030817]
[1755124310142,7.02,4738.1,4737.5,0.9792]
[1755124310348,7.1256,4738.1,4737.5,0.9792]
[1755124310900,7.1256,4738.1,4737.4,3.279]
[1755124311586,7.02,4738.1,4737.5,0.4726]
[1755124311790,0.1056,4738.7,4737.8,0.1056]
[1755124311986,0.1056,4738.7,4737.6,0.5066]
[1755124311987,0.1056,4738.7,4738.1,0.1056]
[1755124312481,0.26433058,4738.7,4738.1,0.1056]
[1755124319469,0.1056,4738.3,4737.6,0.1056]
[1755124319664,0.02638132,4738.2,4737.6,0.1056]
[1755124319865,0.1056,4737.9,4737.4,3.279]
[1755124320115,0.8726,4737.8,4737.4,3.279]
[1755124320293,0.30160772,4739.9,4737.4,3.279]
[1755124320294,0.02638411,4737.7,4737.4,3.279]
[1755124320459,0.1056,4737.5,4737.4,3.279]
[1755124322768,0.13198522,4737.5,4737.4,3.279]
[1755124322967,6.07932725,4737.5,4737.4,3.279]
[1755124323691,5.20672725,4737.5,4737.4,3.279]
[1755124323907,3.1056,4737.5,4737.4,3.279]
[1755124326074,3.0,4738.1,4737.4,3.279]
[1755124326279,0.1056,4737.7,4737.4,3.279]
[1755124326474,7.02,4738.2,4737.5,0.4325]
[1755124326712,0.002,4738.5,4737.5,0.9387]
[1755124327009,0.1076,4738.5,4737.9,0.1056]
[1755124327191,0.1076,4738.5,4737.9,0.5381]
[1755124327886,0.002,4738.3,4737.9,0.5381]
[1755124328289,0.002,4738.3,4738.0,0.4325]
[1755124329312,0.002,4738.3,4737.9,0.6118]
[1755124330178,0.002,4738.3,4737.9,0.1056]
[1755124330411,0.002,4738.3,4737.4,3.279]
[1755124330613,0.002,4738.3,4737.6,0.1056]
[1755124330809,2.09067111,4738.3,4737.6,0.1056]
[1755124330984,0.02638132,4738.2,4737.6,0.1056]
[1755124331184,2.09067111,4738.3,4737.6,0.1056]
[1755124331447,0.1056,4738.1,4737.4,3.3846]
[1755124332507,0.1056,4738.1,4737.5,0.9387]
[1755124332822,0.1076,4738.3,4737.7,0.1056]
[1755124333226,0.1076,4738.3,4737.8,0.4325]
[1755124333527,0.1076,4738.3,4737.9,0.9387]
[1755124333721,0.1076,4738.3,4737.9,0.5062]
[1755124333920,0.1076,4738.3,4738.0,0.4325]
[1755124334119,0.1076,4738.3,4738.0,0.9387]
[1755124334327,0.1076,4738.3,4737.7,0.1056]
[1755124334938,0.1076,4738.3,4737.8,0.4325]
[1755124335540,0.1076,4738.3,4737.8,0.5062]
[1755124335842,0.1076,4738.3,4737.7,0.1056]
[1755124335843,0.1076,4738.3,4737.9,0.9387]
[1755124336000,0.1076,4738.3,4738.0,0.9387]
[1755124336200,0.1076,4738.3,4738.1,0.9387]
[1755124336443,0.002,4738.3,4738.2,4.2157]
[1755124338704,0.002,4738.3,4738.2,3.7095]
[1755124339113,0.002,4738.3,4738.2,4.23680506]
[1755124339332,0.002,4738.3,4738.2,4.2157]
[1755124340632,0.002,4738.3,4738.2,4.3213]
[1755124340844,1e-08,4738.3,4738.2,4.3213]
[1755124344745,1e-08,4738.3,4738.2,3.8888]
[1755124344913,1e-08,4738.3,4738.2,4.3203]
[1755124345840,1e-08,4738.3,4738.2,9.3773]
[1755124352222,1e-08,4738.3,4738.2,8.4386]
[1755124354646,1e-08,4738.3,4738.2,8.8984]
[1755124354850,1e-08,4738.3,4738.2,9.405]
[1755124356958,1e-08,4738.3,4738.2,8.8984]
[1755124357159,1e-08,4738.3,4738.2,8.4386]
[1755124358459,1e-08,4738.3,4738.2,8.8984]
[1755124358661,1e-08,4738.3,4738.2,9.405]
[1755124359360,1e-08,4738.3,4738.2,8.4386]
[1755124359562,0.85600001,4738.3,4738.2,8.331]
[1755124360233,1e-08,4738.3,4738.2,8.331]
[1755124360840,20.58887054,4738.3,4738.2,5.057]
[1755124361041,23.14379779,4738.3,4738.2,8.331]
[1755124361874,2.10112726,4738.3,4738.2,8.331]
[1755124362075,1e-08,4738.3,4738.2,9.2974]
[1755124364389,1e-08,4738.3,4738.2,8.331]
[1755124364792,1e-08,4738.3,4738.2,8.7908]
[1755124364993,1e-08,4738.3,4738.2,8.331]
[1755124369586,1e-08,4738.3,4738.2,8.4366]
[1755124369788,1e-08,4738.3,4738.2,8.331]
[1755124374676,1e-08,4738.3,4738.2,8.8964]
[1755124374876,1e-08,4738.3,4738.2,8.4366]
[1755124376675,1e-08,4738.3,4738.2,8.8964]
[1755124376880,0.002,4738.5,4738.2,9.403]
[1755124377174,0.002,4738.5,4738.3,0.9664]
[1755124377378,0.002,4738.5,4738.4,3.3796]
[1755124377903,0.002,4738.5,4738.4,4.346]
[1755124378107,0.002,4738.5,4738.4,3.3796]
[1755124378501,0.002,4738.5,4738.4,4.3225]
[1755124379706,0.002,4738.5,4738.4,3.3796]
[1755124380480,0.002,4738.5,4738.4,3.3786]
[1755124381116,0.002,4738.5,4738.4,4.3215]
[1755124387597,0.002,4738.8,4738.4,4.3215]
[1755124387796,0.002,4739.5,4738.5,3.96400372]
[1755124388014,0.002,4739.5,4739.2,0.1056]
[1755124388213,0.002,4739.5,4739.2,3.3776]
[1755124388417,0.002,4739.5,4739.2,4.3205]
[1755124393319,0.002,4739.5,4739.2,3.3766]
[1755124393535,0.002,4739.5,4739.2,3.8214]
[1755124393683,0.002,4739.5,4739.2,4.3195]
[1755124395128,0.002,4739.5,4739.2,3.3766]
[1755124395288,0.002,4739.5,4739.2,4.3195]
[1755124395627,0.002,4739.5,4739.2,3.8214]
[1755124395918,0.002,4739.5,4739.2,3.3766]
[1755124396516,0.002,4739.5,4739.2,4.3195]
[1755124396918,0.002,4739.5,4739.2,3.3766]
[1755124398795,0.5455,4739.3,4739.2,3.3766]
[1755124400239,0.002,4739.3,4739.2,3.3766]
[1755124404221,0.002,4739.3,4739.2,8.4316]
[1755124411861,0.002,4739.3,4739.2,9.2215]
[1755124412019,0.002,4739.3,4739.2,9.3271]
[1755124414756,0.002,4739.3,4739.2,5.1606]
[1755124415049,0.002,4739.3,4739.2,8.4296]
[1755124415837,0.002,4739.3,4739.2,8.8651]
[1755124416036,0.002,4739.3,4739.2,8.4296]
[1755124417146,0.002,4739.3,4739.2,5.1606]
[1755124417335,0.002,4739.3,4739.2,8.4296]
[1755124419042,9.1222662,4739.3,4739.2,5.1606]
[1755124419242,10.86783012,4739.3,4739.2,8.323]
[1755124419456,0.91906392,4739.3,4739.2,8.323]
[1755124419657,0.8305,4739.3,4739.2,8.323]
[1755124420060,0.002,4739.3,4739.2,8.323]
[1755124420942,0.8305,4739.3,4739.2,8.323]
[1755124421648,0.002,4739.3,4739.2,8.323]
[1755124424466,0.9361,4739.3,4739.2,8.323]
[1755124424661,1.94393662,4739.3,4739.2,8.323]
[1755124425351,1.11543662,4739.3,4739.2,8.323]
[1755124425550,10.0563662,4739.3,4739.2,8.323]
[1755124431274,9.6118662,4739.3,4739.2,8.323]
[1755124432074,9.2278662,4739.3,4739.2,8.323]
[1755124433180,9.2278662,4739.3,4739.2,3.268]
[1755124435481,0.1076,4739.3,4739.2,3.268]
[1755124435691,1.73458662,4739.3,4739.2,3.268]
[1755124438216,0.1076,4739.3,4739.2,3.268]
[1755124438375,0.002,4739.5,4739.2,4.1766]
[1755124438577,0.002,4739.5,4739.3,0.9086]
[1755124438781,0.002,4739.5,4738.8,0.001]
[1755124438782,0.002,4739.5,4739.4,4.1756]
[1755124440975,0.002,4739.5,4739.4,0.454]
[1755124441318,0.002,4739.5,4739.4,3.266]
[1755124442474,0.002,4739.5,4739.4,3.72]
[1755124442679,0.002,4739.5,4739.4,4.1746]
[1755124443102,0.002,4739.5,4739.4,4.2802]
[1755124444898,0.002,4739.8,4739.4,4.30129971]
[1755124445084,0.002,4739.8,4739.7,0.1056]
[1755124445278,0.002,4739.8,4739.7,3.39269838]
[1755124445679,0.002,4739.8,4739.7,4.2802]
[1755124446010,0.002,4740.3,4739.7,4.2802]
[1755124446307,0.002,4740.3,4739.8,0.9086]
[1755124446506,0.002,4740.3,4740.2,0.1056]
[1755124446709,0.002,4740.3,4740.2,3.3706]
[1755124447087,0.002,4740.3,4740.2,4.2792]
[1755124457821,0.002,4740.3,4740.2,1.0142]
[1755124458118,0.002,4740.3,4740.2,3.3686]
[1755124459212,0.002,4740.3,4740.2,8.4226]
[1755124460794,0.8763,4740.3,4740.2,5.1596]
[1755124460998,0.8763,4740.3,4740.2,8.317]
[1755124461725,9.9965662,4740.3,4740.2,8.317]
[1755124461895,11.02477846,4740.3,4740.2,8.317]
[1755124462511,10.15047846,4740.3,4740.2,5.054]
[1755124462694,11.02477846,4740.3,4740.2,8.317]
[1755124463426,11.13037846,4740.3,4740.2,8.317]
[1755124463801,14.13037846,4740.3,4740.2,8.317]
[1755124464521,14.13037846,4740.3,4740.2,3.263]
[1755124464726,3.0,4740.2,4739.3,0.001]
[1755124464925,1.7414086,4740.1,4739.4,3.263]
[1755124465094,0.43037075,4740.1,4739.4,3.263]
[1755124465424,0.1056,4739.5,4739.4,3.263]
[1755124465624,0.9799,4739.5,4739.4,3.263]
[1755124465998,10.1001662,4739.5,4739.4,3.263]
[1755124466199,9.2258662,4739.5,4739.4,3.263]
[1755124466524,1.49848662,4739.5,4739.4,3.263]
[1755124466716,1.59748662,4739.5,4739.4,3.263]
[1755124467991,4.59748662,4739.5,4739.4,3.263]
[1755124468500,4.59748662,4739.5,4739.3,0.001]